bitfinex/quotes_SOLUSD_20251128
["timestamp","ask_amount","ask_price","bid_price","bid_amount"]
[1764339442704,11.44440758,142.78,142.74,15.8155433]
[1764339442912,0.66,142.77,142.74,15.8155433]
[1764339443912,0.66,142.77,142.74,19.39616884]
[1764339444278,0.2,142.78,142.75,12.39057046]
[1764339444486,0.2,142.78,142.77,3.58062554]
[1764339444911,0.2,142.78,142.77,4.30062554]
[1764339445202,0.2,142.78,142.77,29.7037576]
[1764339445405,0.2,142.8,142.78,8.80994492]
[1764339445595,0.2,142.8,142.79,15.7948936]
[1764339445797,0.2,142.8,142.79,23.51818514]
[1764339446182,0.86,142.8,142.79,18.93323646]
[1764339446384,0.2,142.8,142.79,18.93323646]
[1764339446583,0.2,142.8,142.79,15.81323646]
[1764339446802,0.2,142.8,142.79,19.393862]
[1764339448207,0.2,142.8,142.79,20.113862]
[1764339449897,0.2,142.8,142.79,20.39818514]
[1764339450492,0.2,142.8,142.79,36.70704914]
[1764339450705,0.2,142.8,142.79,23.97881068]
[1764339451318,0.2,142.8,142.79,16.8175596]
[1764339451519,0.2,142.8,142.79,36.70704914]
[1764339452719,0.2,142.8,142.79,35.98704914]
[1764339452940,0.2,142.8,142.79,28.69943446]
[1764339453091,0.2,142.8,142.79,12.39057046]
[1764339453521,0.2,142.8,142.79,19.393862]
[1764339453898,0.2,142.8,142.79,15.81323646]
[1764339454130,0.86,142.8,142.79,8.80994492]
[1764339454409,0.2,142.8,142.79,8.80994492]
[1764339454593,0.2,142.8,142.79,12.39057046]
[1764339455212,0.2,142.8,142.79,8.80994492]
[1764339455609,0.86,142.8,142.79,8.80994492]
[1764339456823,0.2,142.8,142.79,12.39057046]
[1764339457815,0.86,142.8,142.79,8.80994492]
[1764339458301,0.2,142.8,142.79,20.113862]
[1764339458922,0.2,142.8,142.79,23.233862]
[1764339459349,0.2,142.8,142.79,15.51057046]
[1764339460222,0.86,142.8,142.79,8.80994492]
[1764339462732,0.86,142.8,142.79,5.71414492]
[1764339463646,0.89,142.8,142.79,5.71414492]
[1764339464024,0.2,142.8,142.79,5.71414492]
[1764339464417,0.2,142.8,142.79,16.298062]
[1764339464613,0.2,142.8,142.79,20.098062]
[1764339464829,0.2,142.8,142.79,16.51743646]
[1764339465026,0.2,142.8,142.79,19.418062]
[1764339466129,0.2,142.8,142.79,15.83743646]
[1764339467014,0.89,142.8,142.79,8.83414492]
[1764339467217,0.89,142.8,142.78,8.80994492]
[1764339468227,0.2,142.8,142.78,8.80994492]
[1764339468419,0.69,142.79,142.78,8.80994492]
[1764339470238,0.2,142.8,142.78,8.80994492]
[1764339470424,0.89,142.8,142.78,8.80994492]
[1764339471242,0.69,142.79,142.78,8.80994492]
[1764339471443,0.69,142.79,142.74,7.00567561]
[1764339471743,0.69,142.79,142.76,8.80994492]
[1764339472334,7.69366576,142.79,142.76,8.80994492]
[1764339472944,0.69,142.78,142.76,8.80994492]
[1764339473644,0.69,142.78,142.75,8.80994492]
[1764339474441,7.69384249,142.78,142.75,8.80994492]
[1764339475025,0.69,142.77,142.75,8.80994492]
[1764339477030,0.69,142.78,142.75,15.81512572]
[1764339478244,0.2,142.8,142.75,15.81512572]
[1764339478453,0.69,142.79,142.75,19.39575126]
[1764339479343,7.6933546,142.79,142.75,19.39575126]
[1764339479657,0.69,142.78,142.75,19.39575126]
[1764339480529,7.6933546,142.79,142.75,20.07575126]
[1764339481051,7.0033546,142.79,142.75,20.07575126]
[1764339481351,0.69,142.78,142.75,15.81512572]
[1764339482131,0.69,142.78,142.75,19.39575126]
[1764339482656,0.69,142.78,142.75,18.10237806]
[1764339482830,0.69,142.78,142.75,35.61551291]
[1764339483438,0.69,142.78,142.75,15.81512572]
[1764339483634,2.28725234,142.77,142.71,33.334519]
[1764339483833,2.28725234,142.75,142.71,49.643383]
[1764339484036,10.81389036,142.78,142.71,33.334519]
[1764339484037,2.28725234,142.76,142.71,33.334519]
[1764339484236,2.28725234,142.75,142.71,15.81716235]
[1764339484553,2.97725234,142.76,142.71,15.81716235]
[1764339484754,2.28725234,142.76,142.71,15.81716235]
[1764339484955,7.69525394,142.75,142.71,15.81716235]
[1764339485476,0.69,142.74,142.71,15.81716235]
[1764339485842,7.69593708,142.74,142.71,8.80994492]
[1764339486160,2.28725234,142.73,142.7,8.80994492]
[1764339486356,2.97725234,142.73,142.69,8.80994492]
[1764339486564,0.69,142.72,142.69,8.80994492]
[1764339486934,0.69,142.72,142.69,15.81799334]
[1764339488136,2.28725234,142.7,142.65,8.80994492]
[1764339488444,7.69676641,142.72,142.65,18.94010965]
[1764339488445,2.28725234,142.68,142.65,18.94010965]
[1764339488651,2.28725234,142.68,142.62,53.37609495]
[1764339488856,2.28725234,142.68,142.63,11.09719726]
[1764339489057,3.12,142.71,142.65,2.28725234]
[1764339489260,0.69,142.69,142.65,2.28725234]
[1764339489848,0.69,142.69,142.67,8.80994492]
[1764339490150,0.69,142.69,142.67,15.81889967]
[1764339490362,0.69,142.71,142.67,18.78615201]
[1764339490658,0.69,142.71,142.69,8.80994492]
[1764339490852,0.69,142.71,142.68,8.80994492]
[1764339492271,0.69,142.71,142.68,7.00850543]
[1764339492569,0.69,142.71,142.67,2.28725234]
[1764339492570,0.69,142.71,142.69,8.80994492]
[1764339493269,0.69,142.71,142.68,8.80994492]
[1764339494541,0.69,142.71,142.68,15.81834235]
[1764339495845,0.69,142.71,142.68,18.10559469]
[1764339496041,7.66629532,142.73,142.68,18.76559469]
[1764339496267,0.66,142.73,142.69,2.94725234]
[1764339496648,0.66,142.73,142.71,8.80994492]
[1764339497488,0.66,142.73,142.7,8.80994492]
[1764339497688,9.95359163,142.73,142.69,8.80994492]
[1764339498065,0.72,142.72,142.69,8.80994492]
[1764339498265,0.72,142.72,142.69,7.00814257]
[1764339499686,0.72,142.72,142.7,8.80994492]
[1764339500662,7.72595751,142.74,142.7,11.09719726]
[1764339500864,7.72595751,142.74,142.7,11.77719726]
[1764339501674,7.72595751,142.74,142.71,7.00721743]
[1764339501876,7.72522855,142.76,142.72,8.80994492]
[1764339502189,0.72,142.75,142.72,8.80994492]
[1764339502793,0.72,142.75,142.72,15.81666275]
[1764339503585,7.72450043,142.77,142.72,16.49666275]
[1764339503765,7.72364669,142.79,142.74,2.28725234]
[1764339504072,7.72364669,142.79,142.75,11.09719726]
[1764339504073,0.72,142.79,142.75,11.09719726]
[1764339504588,0.72,142.79,142.75,11.77719726]
[1764339504968,0.72,142.79,142.77,8.80994492]
[1764339506889,7.72335126,142.79,142.77,8.80994492]
[1764339507286,0.72,142.78,142.77,8.80994492]
[1764339507669,0.72,142.78,142.75,15.81509586]
[1764339508080,7.00335126,142.79,142.75,18.7823482]
[1764339508284,7.72335126,142.79,142.75,18.7823482]
[1764339508678,0.72,142.79,142.75,18.7823482]
[1764339509576,0.72,142.79,142.75,18.1023482]
[1764339509778,0.72,142.79,142.77,8.80994492]
[1764339510378,0.72,142.79,142.76,8.80994492]
[1764339512195,7.72330552,142.79,142.76,8.80994492]
[1764339512392,2.28725234,142.78,142.74,8.80994492]
[1764339512698,3.00725234,142.78,142.74,8.80994492]
[1764339512877,0.72,142.77,142.74,8.80994492]
[1764339513580,0.72,142.77,142.73,18.10329716]
[1764339513904,7.72428557,142.77,142.73,8.80994492]
[1764339514081,10.01153791,142.77,142.73,8.80994492]
[1764339514280,3.00725234,142.76,142.73,8.80994492]
[1764339514685,0.72,142.75,142.73,8.80994492]
[1764339516290,7.7249037,142.76,142.73,15.81605218]
[1764339516492,0.72,142.76,142.73,15.81605218]
[1764339516690,0.72,142.76,142.73,8.80994492]
[1764339516691,7.72482744,142.76,142.73,8.80994492]
[1764339517300,7.72482744,142.76,142.73,15.81613478]
[1764339517506,12.41170117,142.77,142.73,15.81613478]
[1764339517692,0.72,142.75,142.73,15.81613478]
[1764339517893,7.72516283,142.76,142.73,8.80994492]
[1764339518402,9.29166582,142.77,142.73,8.80994492]
[1764339518603,0.72,142.76,142.73,15.81609299]
[1764339519305,0.72,142.76,142.73,8.80994492]
[1764339519606,3.00725234,142.76,142.73,8.80994492]
[1764339520303,10.01218416,142.76,142.73,8.80994492]
[1764339520508,0.72,142.75,142.73,8.80994492]
[1764339521292,2.28725234,142.74,142.7,7.00757074]
[1764339521606,2.28725234,142.74,142.71,8.80994492]
[1764339521807,0.66,142.73,142.71,8.80994492]
[1764339524410,7.00537597,142.75,142.71,7.00710838]
[1764339524611,0.66,142.74,142.71,7.00710838]
[1764339527590,7.00537597,142.75,142.71,7.71710838]
[1764339528027,0.66,142.74,142.71,7.71710838]
[1764339528219,7.66495861,142.76,142.72,9.51994492]
[1764339528518,0.66,142.75,142.72,9.51994492]
[1764339528699,7.00495861,142.76,142.73,0.71]
[1764339528900,0.66,142.77,142.74,8.80994492]
[1764339529997,7.66441224,142.77,142.74,8.80994492]
[1764339530507,0.66,142.76,142.74,8.80994492]
[1764339532904,9.29114259,142.78,142.74,7.00571045]
[1764339533123,0.66,142.77,142.74,7.00571045]
[1764339534222,0.66,142.77,142.74,7.71571045]
[1764339534828,0.66,142.77,142.74,7.00571045]
[1764339535696,0.66,142.77,142.74,7.71571045]
[1764339535924,7.66389025,142.78,142.74,7.71571045]
[1764339536424,7.00389025,142.78,142.74,7.71571045]
[1764339536609,0.66,142.77,142.74,7.71571045]
[1764339537120,22.89597435,142.79,142.74,7.71571045]
[1764339537121,12.39075361,142.79,142.74,7.71571045]
[1764339537422,0.66,142.78,142.74,7.71571045]
[1764339537723,2.94725234,142.78,142.73,7.00620185]
[1764339538103,0.66,142.77,142.73,7.71620185]
[1764339538395,7.66470465,142.77,142.73,7.71620185]
[1764339538823,7.00470465,142.77,142.73,7.71620185]
[1764339539002,0.66,142.76,142.73,7.71620185]
[1764339539622,0.66,142.79,142.74,14.90719726]
[1764339540121,0.66,142.78,142.74,14.90719726]
[1764339540502,0.66,142.78,142.74,14.19719726]
[1764339540701,0.66,142.78,142.76,8.80994492]
[1764339540902,0.66,142.79,142.76,8.80994492]
[1764339541102,0.66,142.79,142.76,0.71]
[1764339541303,0.66,142.79,142.75,8.80994492]
[1764339541304,0.66,142.79,142.75,9.51994492]
[1764339541722,0.66,142.79,142.75,16.52471114]
[1764339543013,0.66,142.79,142.75,15.81471114]
[1764339543213,10.57789648,142.78,142.75,8.80994492]
[1764339543610,0.66,142.77,142.74,8.80994492]
[1764339544013,4.23411444,142.77,142.74,8.80994492]
[1764339544404,0.66,142.76,142.74,8.80994492]
[1764339545028,3.57411444,142.75,142.66,26.60492047]
[1764339545231,3.57411444,142.75,142.63,7.72114772]
[1764339545232,3.57411444,142.68,142.63,7.72114772]
[1764339545542,3.57411444,142.68,142.63,24.03001172]
[1764339545730,0.66,142.67,142.64,8.80994492]
[1764339545907,0.66,142.67,142.63,24.03001172]
[1764339546108,0.66,142.67,142.63,7.72114772]
[1764339546529,7.66922872,142.67,142.65,8.80994492]
[1764339547426,7.00893054,142.68,142.64,16.53028469]
[1764339547630,0.66,142.67,142.64,19.63028469]
[1764339547929,0.66,142.67,142.64,18.92028469]
[1764339548108,0.66,142.67,142.64,8.80994492]
[1764339548310,3.76,142.67,142.6,0.1]
[1764339548629,3.57411444,142.65,142.6,0.1]
[1764339548827,3.57411444,142.64,142.6,8.90994492]
[1764339549021,4.23411444,142.63,142.6,8.90994492]
[1764339549234,4.23411444,142.63,142.6,0.1]
[1764339549525,0.66,142.62,142.6,0.1]
[1764339549924,0.66,142.65,142.6,7.11232981]
[1764339550133,0.66,142.66,142.61,11.92994492]
[1764339550312,0.66,142.66,142.61,12.63994492]
[1764339550508,0.66,142.66,142.61,8.80994492]
[1764339550509,3.57411444,142.64,142.61,8.80994492]
[1764339550915,0.66,142.63,142.6,3.22]
[1764339551110,10.58379392,142.66,142.61,8.80994492]
[1764339551311,0.66,142.65,142.61,9.48994492]
[1764339551517,0.66,142.65,142.61,8.80994492]
[1764339551712,0.66,142.67,142.63,8.80994492]
[1764339552530,7.66918258,142.67,142.63,8.80994492]
[1764339553241,0.66,142.66,142.63,8.80994492]
[1764339553538,0.66,142.66,142.63,15.82106278]
[1764339554332,7.0088729,142.68,142.64,0.68]
[1764339554533,7.00836531,142.69,142.65,8.80994492]
[1764339554734,7.66836531,142.69,142.65,12.38405936]
[1764339555031,0.66,142.68,142.65,8.80994492]
[1764339555439,0.66,142.68,142.63,22.51504616]
[1764339555632,0.66,142.68,142.63,23.19504616]
[1764339556617,0.66,142.68,142.65,8.80994492]
[1764339556816,0.66,142.68,142.65,12.38405936]
[1764339557037,33.82548223,142.73,142.66,3.57411444]
[1764339557334,0.66,142.7,142.67,12.38405936]
[1764339558841,7.66771289,142.7,142.67,12.38405936]
[1764339559021,0.66,142.7,142.67,12.38405936]
[1764339559412,7.66779348,142.7,142.67,12.38405936]
[1764339559818,7.66779348,142.7,142.64,0.71]
[1764339560132,0.7,142.69,142.67,8.80994492]
[1764339560617,7.00779348,142.7,142.67,12.38405936]
[1764339560814,7.70684428,142.72,142.69,12.38405936]
[1764339561039,7.0063114,142.73,142.69,12.38405936]
[1764339561236,0.7,142.71,142.69,12.38405936]
[1764339563643,7.70757395,142.71,142.69,8.80994492]
[1764339563840,7.70757395,142.71,142.67,12.38405936]
[1764339564049,0.7,142.7,142.67,12.38405936]
[1764339564944,7.70781484,142.7,142.67,12.38405936]
[1764339567147,0.7,142.7,142.67,8.80994492]
[1764339567734,0.7,142.7,142.67,12.38405936]
[1764339568451,0.7,142.7,142.68,12.38405936]
[1764339568635,7.70672645,142.72,142.69,3.57411444]
[1764339568827,0.7,142.71,142.69,3.57411444]
[1764339569227,0.7,142.74,142.71,8.80994492]
[1764339569439,7.37411444,142.76,142.71,8.80994492]
[1764339569638,0.7,142.75,142.71,8.80994492]
[1764339569835,4.27411444,142.75,142.71,8.80994492]
[1764339570045,0.7,142.74,142.71,8.80994492]
[1764339570341,7.00623554,142.73,142.71,8.80994492]
[1764339570937,0.7,142.72,142.69,8.80994492]
[1764339572458,7.00721743,142.71,142.69,8.80994492]
[1764339573039,0.7,142.7,142.69,8.80994492]
[1764339575238,7.70770847,142.7,142.69,8.80994492]
[1764339575642,0.7,142.7,142.69,8.80994492]
[1764339575865,14.38182291,142.7,142.61,8.80994492]
[1764339576049,3.57411444,142.65,142.59,11.39674798]
[1764339576248,3.57411444,142.65,142.59,14.49674798]
[1764339576450,0.7,142.64,142.6,7.11250529]
[1764339576633,0.7,142.64,142.61,8.80994492]
[1764339577450,62.66552205,142.7,142.62,3.57411444]
[1764339577656,0.7,142.66,142.62,4.28411444]
[1764339577859,7.70972059,142.66,142.62,11.29558198]
[1764339578457,0.7,142.66,142.63,12.38405936]
[1764339579243,0.7,142.66,142.63,8.80994492]
[1764339579462,7.70982124,142.66,142.63,8.80994492]
[1764339580537,0.67,142.69,142.65,12.38405936]
[1764339580745,4.24411444,142.72,142.66,3.57411444]
[1764339581055,7.34411444,142.72,142.66,3.57411444]
[1764339581252,0.67,142.71,142.66,3.57411444]
[1764339581656,25.19584179,142.71,142.66,3.57411444]
[1764339581857,25.19584179,142.71,142.67,13.06405936]
[1764339582567,7.67721743,142.71,142.68,3.57411444]
[1764339582752,7.67721743,142.71,142.69,8.80994492]
[1764339582753,0.67,142.71,142.69,8.80994492]
[1764339583364,7.00687783,142.72,142.69,3.57411444]
[1764339583556,7.67687783,142.72,142.69,3.57411444]
[1764339583871,7.67687783,142.72,142.69,8.80994492]
[1764339584769,0.67,142.71,142.67,0.68]
[1764339585069,0.67,142.71,142.67,8.80994492]
[1764339585860,7.00770847,142.7,142.68,8.80994492]
[1764339586268,7.67770847,142.7,142.68,8.80994492]
[1764339586470,0.67,142.69,142.68,8.80994492]
[1764339587870,0.67,142.69,142.65,8.80994492]
[1764339587871,11.25231403,142.69,142.65,8.80994492]
[1764339588062,7.67819959,142.69,142.65,8.80994492]
[1764339588260,0.67,142.68,142.65,8.80994492]
[1764339589175,7.67872129,142.68,142.65,8.80994492]
[1764339590673,3.57411444,142.7,142.65,15.82002476]
[1764339590865,0.67,142.7,142.66,0.68]
[1764339591175,0.67,142.7,142.66,4.25411444]
[1764339591370,7.67793822,142.7,142.66,4.25411444]
[1764339591576,7.67793822,142.7,142.68,8.80994492]
[1764339592354,7.67793822,142.7,142.67,8.80994492]
[1764339592572,7.00793822,142.7,142.67,8.80994492]
[1764339592771,0.67,142.69,142.67,8.80994492]
[1764339593176,7.00793822,142.7,142.67,8.80994492]
[1764339593371,7.67793822,142.7,142.67,8.80994492]
[1764339593563,7.00721743,142.71,142.67,8.80994492]
[1764339593967,0.67,142.7,142.67,8.80994492]
[1764339595376,7.67775546,142.7,142.67,8.80994492]
[1764339595750,19.408864,142.72,142.67,8.80994492]
[1764339595955,0.67,142.71,142.67,9.48994492]
[1764339596376,0.67,142.71,142.67,8.80994492]
[1764339596572,0.67,142.71,142.67,12.38405936]
[1764339596879,0.67,142.71,142.67,8.80994492]
[1764339597280,7.00770847,142.7,142.67,8.80994492]
[1764339597473,7.67732043,142.71,142.67,8.80994492]
[1764339597655,0.67,142.7,142.67,8.80994492]
[1764339598467,0.67,142.7,142.66,8.80994492]
[1764339598973,4.24411444,142.7,142.66,8.80994492]
[1764339599179,7.00819959,142.69,142.66,8.80994492]
[1764339599364,7.67819959,142.69,142.66,8.80994492]
[1764339600380,0.67,142.68,142.66,8.80994492]
[1764339601379,7.67819959,142.69,142.66,8.80994492]
[1764339601981,7.00819959,142.69,142.66,8.80994492]
[1764339602276,7.00819959,142.69,142.66,13.06405936]
[1764339602473,7.67781547,142.7,142.66,20.07342174]
[1764339603559,7.6773119,142.71,142.67,4.25411444]
[1764339603759,0.67,142.7,142.67,4.25411444]
[1764339604081,0.67,142.7,142.67,0.68]
[1764339604661,0.67,142.7,142.67,7.6889148]
[1764339605458,7.0073119,142.71,142.67,9.97911659]
[1764339605673,7.6773119,142.71,142.67,9.97911659]
[1764339606085,0.67,142.7,142.67,9.97911659]
[1764339606287,0.67,142.7,142.67,9.29911659]
[1764339607073,7.0073119,142.71,142.67,9.97911659]
[1764339607273,7.6773119,142.71,142.67,9.29911659]
[1764339607462,7.6773119,142.71,142.69,8.80994492]
[1764339608162,0.67,142.74,142.7,2.97020179]
[1764339608458,7.67606042,142.74,142.72,8.80994492]
[1764339610100,7.00606042,142.74,142.72,8.80994492]
[1764339610297,0.67,142.74,142.71,8.80994492]
[1764339610499,0.67,142.74,142.71,11.10014671]
[1764339610704,7.70525394,142.75,142.71,9.52994492]
[1764339610997,0.7,142.74,142.71,9.52994492]
[1764339611501,0.7,142.74,142.71,11.82014671]
[1764339612413,7.00525394,142.75,142.72,0.72]
[1764339612593,7.70525394,142.75,142.73,8.80994492]
[1764339613201,0.7,142.75,142.73,8.80994492]
[1764339613393,7.70526691,142.75,142.73,8.80994492]
[1764339616708,0.7,142.75,142.73,8.80994492]
[1764339616915,0.7,142.75,142.73,11.10014671]
[1764339617139,0.7,142.75,142.67,0.28432314]
[1764339617140,1.99999999,142.64,142.59,0.1]
[1764339617432,1.99999999,142.55,142.52,0.78]
[1764339617789,1.99999999,142.55,142.54,0.68]
[1764339619014,1.99999999,142.55,142.54,9.48994492]
[1764339619202,1.99999999,142.55,142.54,8.80994492]
[1764339620695,9.01459033,142.56,142.55,8.80994492]
[1764339621010,9.01459033,142.56,142.55,0.68]
[1764339621616,7.01459034,142.56,142.55,0.68]
[1764339621814,9.01459033,142.56,142.55,0.68]
[1764339623092,9.01459033,142.56,142.52,9.05210649]
[1764339623298,1.99999999,142.55,142.54,11.96994492]
[1764339623691,1.99999999,142.55,142.54,12.64994492]
[1764339625101,13.16095596,142.55,142.54,8.80994492]
[1764339625301,1.99999999,142.54,142.53,3.26]
[1764339625498,1.99999999,142.54,142.53,12.06994492]
[1764339626209,8.14587353,142.54,142.53,12.74994492]
[1764339626511,15.1614481,142.54,142.53,12.06994492]
[1764339627901,15.1614481,142.54,142.53,0.1]
[1764339628105,15.1614481,142.54,142.53,3.26]
[1764339629636,15.1614481,142.54,142.53,0.1]
[1764339633506,15.1614481,142.54,142.53,3.26]
[1764339636101,15.1614481,142.54,142.53,3.94]
[1764339636301,15.1614481,142.54,142.53,3.26]
[1764339638726,11.31160092,142.54,142.53,3.26]
[1764339641130,11.31160092,142.54,142.53,3.92]
[1764339642351,8.29557456,142.54,142.53,9.56994492]
[1764339642524,10.59160092,142.54,142.53,12.72994492]
[1764339643343,8.29557456,142.54,142.53,12.72994492]
[1764339643711,9.01508241,142.55,142.54,8.80994492]
[1764339643911,9.01508241,142.55,142.54,9.46994492]
[1764339645833,11.31110877,142.55,142.54,9.46994492]
[1764339648435,9.01508241,142.55,142.54,9.46994492]
[1764339648642,7.01508242,142.55,142.54,9.46994492]
[1764339648844,7.01478377,142.56,142.54,9.46994492]
[1764339649046,9.01478376,142.56,142.55,9.46994492]
[1764339650146,1.99999999,142.56,142.55,9.46994492]
[1764339651340,4.29602635,142.58,142.56,8.80994492]
[1764339651524,11.30933404,142.59,142.57,11.96994492]
[1764339651839,2.29602636,142.58,142.57,12.62994492]
[1764339652038,1.99999999,142.58,142.57,11.96994492]
[1764339652540,1.99999999,142.58,142.57,12.62994492]
[1764339653124,11.30886294,142.6,142.57,19.64404325]
[1764339653441,4.29602635,142.6,142.59,8.80994492]
[1764339653816,4.29602635,142.6,142.59,9.46994492]
[1764339656854,1.99999999,142.6,142.59,9.46994492]
[1764339657031,4.29602635,142.6,142.59,9.46994492]
[1764339657938,11.30864907,142.6,142.59,8.80994492]
[1764339660955,1.99999999,142.59,142.56,7.6744963]
[1764339661254,1.99999999,142.58,142.57,3.14]
[1764339661563,1.99999999,142.58,142.57,3.8]
[1764339662247,4.29602635,142.58,142.57,3.8]
[1764339662961,1.99999999,142.58,142.57,3.8]
[1764339663558,1.99999999,142.59,142.57,19.62404325]
[1764339663728,1.99999999,142.59,142.58,0.66]
[1764339665628,1.99999999,142.6,142.59,8.80994492]
[1764339665831,5.58322955,142.6,142.59,8.80994492]
[1764339666037,5.58322955,142.6,142.59,9.46994492]
[1764339666339,1.99999999,142.58,142.57,3.14]
[1764339666540,5.58322955,142.58,142.57,3.8]
[1764339667249,1.99999999,142.58,142.57,3.8]
[1764339667440,5.58322955,142.58,142.57,3.8]
[1764339672154,1.99999999,142.59,142.57,10.81409833]
[1764339672356,1.99999999,142.64,142.58,9.64210649]
[1764339672540,1.99999999,142.63,142.58,12.78210649]
[1764339672747,5.58322955,142.61,142.59,0.69]
[1764339673135,1.99999999,142.61,142.59,0.69]
[1764339673335,3.58322956,142.62,142.59,0.69]
[1764339673556,1.99999999,142.61,142.6,9.30994492]
[1764339673935,1.99999999,142.61,142.6,17.01256764]
[1764339674445,3.58322956,142.62,142.6,9.99994492]
[1764339674743,3.58322956,142.62,142.61,3.83]
[1764339675254,5.58322955,142.62,142.61,3.83]
[1764339675635,3.58322956,142.64,142.62,8.80994492]
[1764339675836,5.58322955,142.65,142.64,8.80994492]
[1764339676048,5.58322955,142.65,142.64,11.94994492]
[1764339676467,5.58322955,142.66,142.64,12.63994492]
[1764339676760,5.58322955,142.66,142.65,9.48994492]
[1764339679655,1.99999999,142.66,142.65,9.48994492]
[1764339679955,30.78234779,142.7,142.65,16.50010965]
[1764339679956,5.58322955,142.67,142.65,16.50010965]
[1764339680135,5.58322955,142.67,142.66,0.68]
[1764339680944,1.99999999,142.67,142.66,0.68]
[1764339681256,5.58322955,142.67,142.66,7.68967334]
[1764339681456,3.58322956,142.67,142.66,7.68967334]
[1764339681662,5.58322955,142.67,142.66,7.68967334]
[1764339682131,5.58322955,142.67,142.65,7.6900911]
[1764339682336,7.00850197,142.69,142.65,7.6900911]
[1764339682337,5.58322955,142.66,142.65,7.6900911]
[1764339682536,5.58322955,142.66,142.65,10.8300911]
[1764339684476,5.58322955,142.66,142.65,10.1500911]
[1764339684641,5.58322955,142.66,142.64,9.48994492]
[1764339684842,3.58322956,142.65,142.64,8.80994492]
[1764339685040,3.58322956,142.65,142.64,12.62994492]
[1764339687264,3.58322956,142.65,142.64,18.96060111]
[1764339687443,1.99999999,142.66,142.64,18.96060111]
[1764339687649,3.58322956,142.65,142.64,19.64060111]
[1764339690669,5.58322955,142.66,142.64,19.64060111]
[1764339690983,1.99999999,142.66,142.65,0.68]
[1764339691150,1.99999999,142.67,142.65,0.68]
[1764339691349,1.99999999,142.67,142.66,3.14]
[1764339691772,5.58322955,142.68,142.67,8.80994492]
[1764339693176,5.58322955,142.68,142.67,9.48994492]
[1764339693376,5.58322955,142.68,142.67,8.80994492]
[1764339695579,5.58322955,142.68,142.67,9.48994492]
[1764339695874,3.58322956,142.68,142.67,9.48994492]
[1764339696051,5.58322955,142.68,142.67,8.80994492]
[1764339696749,5.58322955,142.68,142.67,11.92994492]
[1764339696955,5.58322955,142.69,142.67,19.61912694]
[1764339697156,5.58322955,142.7,142.69,15.81814451]
[1764339697378,5.58322955,142.7,142.69,11.92994492]
[1764339697871,1.99999999,142.68,142.66,0.68]
[1764339698081,5.58322955,142.68,142.67,3.8]
[1764339699080,5.58322955,142.68,142.67,3.12]
[1764339699862,5.58322955,142.68,142.67,11.92994492]
[1764339701877,13.25192032,142.68,142.67,3.12]
[1764339704373,12.59192032,142.68,142.67,3.12]
[1764339708193,5.58322955,142.68,142.67,3.12]
[1764339710470,5.58322955,142.68,142.67,3.79]
[1764339711490,1.99999999,142.68,142.67,19.60912694]
[1764339711691,5.58322955,142.69,142.67,19.60912694]
[1764339711872,1.99999999,142.68,142.67,18.93912694]
[1764339712480,1.99999999,142.68,142.67,19.60912694]
[1764339713200,5.58322955,142.7,142.68,8.80994492]
[1764339713379,3.58322956,142.7,142.68,9.47994492]
[1764339713695,5.58322955,142.7,142.69,9.47994492]
[1764339713885,5.58322955,142.7,142.69,8.80994492]
[1764339718904,1.99999999,142.7,142.69,8.80994492]
[1764339719106,5.58322955,142.7,142.69,8.80994492]
[1764339720494,5.58322955,142.7,142.69,16.48814451]
[1764339720680,1.99999999,142.7,142.69,16.48814451]
[1764339721088,1.99999999,142.7,142.69,19.60814451]
[1764339722102,5.78322955,142.71,142.7,8.80994492]
[1764339722312,2.19999999,142.71,142.7,9.47994492]
[1764339722487,0.2,142.71,142.7,16.48765339]
[1764339723083,0.2,142.71,142.7,16.77197653]
[1764339724883,0.2,142.71,142.7,16.48765339]
[1764339725083,0.2,142.71,142.7,19.60765339]
[1764339727009,2.48897052,142.71,142.7,8.80994492]
[1764339727212,2.48897052,142.71,142.63,75.0]
[1764339727213,1.99999999,142.7,142.66,0.67]
[1764339727393,2.28897052,142.67,142.65,7.00996008]
[1764339727593,2.28897052,142.66,142.65,15.819905]
[1764339727908,4.28897051,142.67,142.65,19.609905]
[1764339728292,4.28897051,142.67,142.65,18.939905]